lending/lending_fUSD_20240809
["ID","MTS","AMOUNT","RATE_DAILY","PERIOD"]
[334506531,1723170642743,-19531.05,0.00024109,5]
[334506532,1723170642753,-1434.81,0.00024109,5]
[334506533,1723170642762,-647.67,0.00024109,5]
[334506534,1723170642771,-5316.05,0.00024109,5]
[334506535,1723170642787,-647.67,0.00024109,5]
[334506536,1723170642796,-647.67,0.00024109,5]
[334506537,1723170642806,-3975.48,0.00024109,5]
[334506538,1723170642815,-3975.48,0.00024109,5]
[334506539,1723170642824,-8954.12,0.00024109,5]
[334506540,1723170642833,-8954.12,0.00024109,5]
[334506541,1723170642843,-887.31,0.00024109,5]
[334506542,1723170642853,-887.31,0.00024109,5]
[334506543,1723170642862,-887.31,0.00024109,5]
[334506544,1723170642872,-1114.76,0.00024109,5]
[334506545,1723170642881,-14406.27,0.00024109,5]
[334506546,1723170642890,-14406.27,0.00024109,5]
[334506547,1723170642900,-500.0,0.00024109,5]
[334506548,1723170642909,-2531.5,0.00024109,5]
[334506549,1723170642918,-500.0,0.00024109,5]
[334506550,1723170642928,-500.0,0.00024109,5]
[334506551,1723170642937,-500.0,0.00024109,5]
[334506553,1723170642946,-500.0,0.00024109,5]
[334506555,1723170642959,-4267.61,0.00024109,5]
[334506557,1723170642968,-279.84591685,0.00024109,5]
[334506558,1723170642978,-5687.1,0.00024109,5]
[334506559,1723170642987,-5687.1,0.00024109,5]
[334506560,1723170642996,-3935.81,0.00024109,5]
[334506561,1723170643006,-3343.34,0.00024109,5]
[334506562,1723170643015,-500.0,0.00024109,5]
[334506563,1723170643025,-500.0,0.00024109,5]
[334506564,1723170643034,-500.0,0.00024109,5]
[334506565,1723170643044,-1676.07,0.00024109,5]
[334506566,1723170643053,-9551.07,0.00024109,5]
[334506567,1723170643063,-9551.07,0.00024109,5]
[334506568,1723170643073,-2537.2,0.00024109,5]
[334506569,1723170643082,-500.0,0.00024109,5]
[334506570,1723170643092,-1879.01,0.00024109,5]
[334506571,1723170643101,-500.0,0.00024109,5]
[334506572,1723170643112,-3395.41,0.00024109,5]
[334506573,1723170643124,-28467.15,0.00024109,5]
[334506574,1723170643134,-28467.15,0.00024109,5]
[334506575,1723170643146,-3396.98,0.00024109,5]
[334506576,1723170643156,-1212.01,0.00024109,5]
[334506577,1723170643166,-500.0,0.00024109,5]
[334506578,1723170643177,-500.89557447,0.00024109,5]
[334506579,1723170643187,-2158.92,0.00024109,5]
[334506580,1723170643197,-5367.26,0.00024109,5]
[334506581,1723170643206,-5240.17,0.00024109,5]
[334506582,1723170643216,-5240.17,0.00024109,5]
[334506583,1723170643225,-1636.19,0.00024109,5]
[334506584,1723170643235,-1109.6,0.00024109,5]
[334506585,1723170643244,-1896.15,0.00024109,5]
[334506586,1723170643254,-1109.6,0.00024109,5]
[334506587,1723170643263,-1109.6,0.00024109,5]
[334506588,1723170643277,-1896.15,0.00024109,5]
[334506589,1723170643291,-1896.15,0.00024109,5]
[334506590,1723170643301,-500.0,0.00024109,5]
[334506591,1723170643311,-3366.11,0.00024109,5]
[334506592,1723170643320,-620.98759453,0.00024109,5]
[334506593,1723170643330,-4490.81,0.00024109,5]
[334506594,1723170643339,-4490.81,0.00024109,5]
[334506595,1723170643348,-4490.81,0.00024109,5]
[334506596,1723170643358,-2840.81,0.00024109,5]
[334506597,1723170643367,-2840.81,0.00024109,5]
[334506598,1723170643379,-501.43537762,0.00024109,5]
[334506599,1723170643388,-2606.36,0.00024109,5]
[334506600,1723170643398,-3854.56,0.00024109,5]
[334506601,1723170643406,-19672.22,0.00024109,5]
[334506602,1723170643621,-19672.22,0.00024109,5]
[334506603,1723170643631,-19672.22,0.00024109,5]
[334506604,1723170643640,-7292.06,0.00024109,5]
[334506605,1723170643649,-500.0,0.00024109,5]
[334506606,1723170643659,-500.0,0.00024109,5]
[334506607,1723170643669,-500.0,0.00024109,5]
[334506608,1723170643678,-764.66,0.00024109,5]
[334506610,1723170643689,-6179.83,0.00024109,5]
[334506611,1723170643699,-500.0,0.00024109,5]
[334506613,1723170643710,-6179.83,0.00024109,5]
[334506615,1723170643721,-6179.83,0.00024109,5]
[334506617,1723170643731,-8501.32,0.00024109,5]
[334506619,1723170643741,-8501.32,0.00024109,5]
[334506621,1723170643750,-2602.88,0.00024109,5]
[334506622,1723170643760,-1509.86,0.00024109,5]
[334506623,1723170643770,-500.0,0.00024109,5]
[334506624,1723170643779,-500.0,0.00024109,5]
[334506625,1723170643789,-500.0,0.00024109,5]
[334506626,1723170643798,-4565.42,0.00024109,5]
[334506627,1723170643807,-9194.03,0.00024109,5]
[334506628,1723170643816,-4565.42,0.00024109,5]
[334506629,1723170643825,-1075.26,0.00024109,5]
[334506630,1723170643835,-1075.26,0.00024109,5]
[334506631,1723170643845,-1075.26,0.00024109,5]
[334506632,1723170643855,-2492.06,0.00024109,5]
[334506633,1723170643866,-2492.06,0.00024109,5]
[334506634,1723170643877,-2492.06,0.00024109,5]
[334506635,1723170643887,-1692.29,0.00024109,5]
[334506636,1723170643897,-1692.29,0.00024109,5]
[334506637,1723170643906,-1692.29,0.00024109,5]
[334506638,1723170643916,-500.0,0.00024109,5]
[334506639,1723170643926,-500.0,0.00024109,5]
[334506640,1723170643936,-500.0,0.00024109,5]
[334506641,1723170643945,-1321.93,0.00024109,5]
[334506642,1723170643955,-1321.93,0.00024109,5]
[334506643,1723170643965,-1269.81,0.00024109,5]
[334506644,1723170643975,-1321.93,0.00024109,5]
[334506645,1723170643988,-19443.35,0.00024109,5]
[334506646,1723170643998,-19443.35,0.00024109,5]
[334506647,1723170644008,-18122.69,0.00024109,5]
[334506648,1723170644020,-18122.69,0.00024109,5]
[334506649,1723170644031,-18122.69,0.00024109,5]
[334506650,1723170644041,-985.71,0.00024109,5]
[334506651,1723170644050,-183.263966,0.00024109,5]
[334506652,1723170644060,-500.0,0.00024109,5]
[334506653,1723170644070,-3197.82,0.00024109,5]
[334506654,1723170644079,-500.0,0.00024109,5]
[334506655,1723170644089,-500.0,0.00024109,5]
[334506656,1723170644098,-500.0,0.00024109,5]
[334506657,1723170644108,-500.0,0.00024109,5]
[334506658,1723170644118,-500.0,0.00024109,5]
[334506659,1723170644128,-794.61,0.00024122,5]
[334506660,1723170644137,-1523.86,0.00024122,5]
[334506661,1723170644147,-500.0,0.00024122,5]
[334506662,1723170644157,-859.16,0.00024122,5]
[334506663,1723170644167,-500.0,0.00024122,5]
[334506664,1723170644177,-500.0,0.00024122,5]
[334506665,1723170644187,-200.0,0.00024273,2]
[334506666,1723170644197,-200.0,0.00024273,2]
[334506667,1723170644206,-3266.28,0.00024286,5]
[334506668,1723170644217,-3266.28,0.00024286,5]
[334506669,1723170644226,-647.67,0.00024286,5]
[334506670,1723170644236,-647.67,0.00024286,5]
[334506671,1723170644246,-647.67,0.00024286,5]
[334506672,1723170644255,-887.31,0.00024286,5]
[334506673,1723170644265,-887.31,0.00024286,5]
[334506674,1723170644275,-887.31,0.00024286,5]
[334506675,1723170644284,-500.0,0.00024286,5]
[334506676,1723170644293,-500.0,0.00024286,5]
[334506677,1723170644303,-500.0,0.00024286,5]
[334506678,1723170644311,-500.0,0.00024286,5]
[334506679,1723170644321,-500.0,0.00024286,5]
[334506680,1723170644330,-500.0,0.00024286,5]
[334506681,1723170644340,-1896.15,0.00024286,5]
[334506682,1723170644349,-1896.15,0.00024286,5]
[334506683,1723170644359,-1896.15,0.00024286,5]
[334506684,1723170644369,-4490.81,0.00024286,5]
[334506685,1723170644382,-4490.81,0.00024286,5]
[334506686,1723170644391,-19672.22,0.00024286,5]
[334506687,1723170644401,-19672.22,0.00024286,5]
[334506688,1723170644410,-19672.22,0.00024286,5]
[334506689,1723170644421,-500.0,0.00024286,5]
[334506690,1723170644432,-500.0,0.00024286,5]
[334506691,1723170644442,-6179.83,0.00024286,5]
[334506692,1723170644454,-6179.83,0.00024286,5]
[334506693,1723170644465,-6179.83,0.00024286,5]
[334506694,1723170644475,-500.0,0.00024286,5]
[334506695,1723170644486,-246.05073319,0.00024286,5]
[334506696,1723170644497,-1075.26,0.00024286,5]
[334506697,1723170644507,-1075.26,0.00024286,5]
[334506698,1723170644516,-1075.26,0.00024286,5]
[334506699,1723170644528,-2492.06,0.00024286,5]
[334506700,1723170644538,-2492.06,0.00024286,5]
[334506701,1723170644547,-1692.29,0.00024286,5]
[334506702,1723170644558,-1692.29,0.00024286,5]
[334506703,1723170644569,-1692.29,0.00024286,5]
[334506704,1723170644580,-500.0,0.00024286,5]
[334506705,1723170644592,-168.72774771,0.00024286,5]
[334506706,1723170644603,-1321.93,0.00024286,5]
[334506707,1723170644614,-1321.93,0.00024286,5]
[334506708,1723170644623,-1321.93,0.00024286,5]
[334506709,1723170644635,-18122.69,0.00024286,5]
[334506710,1723170644646,-18122.69,0.00024286,5]
[334506711,1723170644656,-500.0,0.00024286,5]
[334506712,1723170644666,-500.0,0.00024286,5]
[334506713,1723170644676,-500.0,0.00024286,5]
[334506714,1723170644688,-500.0,0.00024286,5]
[334506715,1723170644697,-500.0,0.00024286,5]
[334506716,1723170644707,-500.0,0.00024286,5]
[334506717,1723170644717,-520.62,0.00024287,5]
[334506718,1723170644728,-740.04,0.00024287,5]
[334506719,1723170644739,-500.0,0.00024287,5]
[334506720,1723170644751,-500.0,0.00024287,5]
[334506721,1723170644762,-500.0,0.00024287,5]
[334506722,1723170644773,-500.0,0.00024287,5]
[334506723,1723170644785,-500.0,0.00024287,5]
[334506724,1723170644795,-500.0,0.00024287,5]
[334506725,1723170644805,-500.0,0.00024287,5]
[334506726,1723170644815,-500.0,0.00024287,5]
[334506727,1723170644825,-500.0,0.00024287,5]
[334506728,1723170644835,-500.0,0.00024287,5]
[334506729,1723170644845,-500.0,0.00024287,5]
[334506730,1723170644854,-749.04,0.00024287,5]
[334506731,1723170644864,-500.0,0.00024287,5]
[334506732,1723170644873,-603.59,0.00024287,5]
[334506733,1723170644884,-500.0,0.00024287,5]
[334506734,1723170644893,-638.47,0.00024287,5]
[334506735,1723170644903,-500.0,0.00024287,5]
[334506736,1723170644912,-500.0,0.00024287,5]
[334506737,1723170644922,-500.0,0.00024287,5]
[334506738,1723170644931,-500.0,0.00024287,5]
[334506739,1723170644941,-500.0,0.00024287,5]
[334506740,1723170644951,-1228.96,0.00024287,5]
[334506741,1723170644960,-1432.51,0.00024287,5]
[334506742,1723170644969,-2849.52,0.00024287,5]
[334506743,1723170644979,-500.0,0.00024287,5]
[334506744,1723170644989,-2394.21,0.00024287,5]
[334506745,1723170644999,-500.0,0.00024287,5]
[334506746,1723170645009,-3297.52,0.00024287,5]
[334506747,1723170645019,-3418.43,0.00024287,5]
[334506748,1723170645032,-1314.08,0.00024287,5]
[334506749,1723170645042,-1892.69,0.00024287,5]
[334506750,1723170645051,-662.29,0.00024287,5]
[334506751,1723170645061,-733.95,0.00024287,5]
[334506752,1723170645070,-1636.03,0.00024287,5]
[334506753,1723170645080,-1798.24,0.00024287,5]
[334506754,1723170645089,-637.46,0.00024287,5]
[334506755,1723170645099,-2578.67,0.00024287,5]
[334506756,1723170645109,-1066.56,0.00024287,5]
[334506757,1723170645118,-504.97,0.00024287,5]
[334506758,1723170645128,-500.0,0.00024287,5]
[334506759,1723170645138,-1017.31,0.00024287,5]
[334506760,1723170645147,-1770.98,0.00024287,5]
[334506761,1723170645157,-1252.89,0.00024287,5]
[334506762,1723170645167,-500.0,0.00024287,5]
[334506763,1723170645176,-2762.02,0.00024287,5]
[334506764,1723170645186,-552.69,0.00024287,5]
[334506765,1723170645196,-1309.81,0.00024287,5]
[334506766,1723170645205,-1423.3,0.00024287,5]
[334506767,1723170645215,-500.0,0.00024287,5]
[334506768,1723170645225,-781.57,0.00024287,5]
[334506769,1723170645234,-2209.42,0.00024287,5]
[334506770,1723170645244,-2934.71,0.00024287,5]
[334506771,1723170645253,-1713.8,0.00024287,5]
[334506772,1723170645263,-500.0,0.00024287,5]
[334506773,1723170645272,-1382.75,0.00024287,5]
[334506774,1723170645282,-500.0,0.00024287,5]
[334506775,1723170645292,-2650.89,0.00024287,5]
[334506776,1723170645301,-500.0,0.00024287,5]
[334506777,1723170645311,-762.44,0.00024287,5]
[334506778,1723170645320,-1300.07,0.00024287,5]
[334506779,1723170645331,-500.0,0.00024287,5]
[334506780,1723170645341,-743.38,0.00024287,5]
[334506781,1723170645351,-500.0,0.00024287,5]
[334506782,1723170645360,-1968.46,0.00024287,5]
[334506783,1723170645371,-1203.96,0.00024287,5]
[334506784,1723170645385,-1492.11,0.00024287,5]
[334506785,1723170645395,-1487.45,0.00024287,5]
[334506786,1723170645405,-1243.47,0.00024287,5]
[334506787,1723170645415,-500.0,0.00024287,5]
[334506788,1723170645427,-500.0,0.00024287,5]
[334506789,1723170645437,-757.74,0.00024287,5]
[334506790,1723170645447,-500.0,0.00024287,5]
[334506791,1723170645458,-500.0,0.00024287,5]
[334506792,1723170645469,-2814.7,0.00024287,5]
[334506793,1723170645480,-4768.8,0.00024287,5]
[334506794,1723170645490,-500.0,0.00024287,5]
[334506795,1723170645499,-500.0,0.00024287,5]
[334506796,1723170645510,-500.0,0.00024287,5]
[334506797,1723170645521,-1274.58,0.00024287,5]
[334506798,1723170645532,-500.0,0.00024287,5]
[334506799,1723170645542,-1357.89,0.00024287,5]
[334506800,1723170645552,-1819.97,0.00024287,5]
[334506801,1723170645561,-902.09,0.00024287,5]
[334506802,1723170645571,-500.0,0.00024287,5]
[334506803,1723170645581,-500.0,0.00024287,5]
[334506804,1723170645590,-500.0,0.00024287,5]
[334506805,1723170645599,-500.0,0.00024287,5]
[334506806,1723170645609,-1734.61,0.00024287,5]
[334506807,1723170645618,-500.0,0.00024287,5]
[334506808,1723170645628,-500.0,0.00024287,5]
[334506809,1723170645637,-500.0,0.00024287,5]
[334506810,1723170645646,-611.37,0.00024287,5]
[334506811,1723170645656,-500.0,0.00024287,5]
[334506812,1723170645666,-500.0,0.00024287,5]
[334506813,1723170645676,-3108.58,0.00024287,5]
[334506814,1723170645686,-3915.77,0.00024287,5]
[334506815,1723170645696,-500.0,0.00024287,5]
[334506816,1723170645706,-500.0,0.00024287,5]
[334506817,1723170645716,-897.17,0.00024287,5]
[334506818,1723170645726,-500.0,0.00024287,5]
[334506819,1723170645736,-568.01,0.00024287,5]
[334506820,1723170645746,-500.0,0.00024287,5]
[334506821,1723170645755,-2938.4,0.00024287,5]
[334506822,1723170645765,-1954.71,0.00024287,5]
[334506823,1723170645774,-519.4,0.00024287,5]
[334506824,1723170645783,-500.0,0.00024287,5]
[334506825,1723170645793,-500.0,0.00024287,5]
[334506826,1723170645802,-500.0,0.00024287,5]
[334506827,1723170645811,-2719.38,0.00024287,5]
[334506828,1723170645821,-1696.12,0.00024287,5]
[334506829,1723170645830,-500.0,0.00024287,5]
[334506830,1723170645840,-500.0,0.00024287,5]
[334506831,1723170645849,-2485.2,0.00024287,5]
[334506832,1723170645859,-637.08,0.00024287,5]
[334506833,1723170645869,-500.0,0.00024287,5]
[334506834,1723170645879,-500.0,0.00024287,5]
[334506835,1723170645888,-1862.22,0.00024287,5]
[334506836,1723170645898,-500.0,0.00024287,5]
[334506837,1723170645907,-1688.39,0.00024287,5]
[334506838,1723170645917,-490.25011274,0.00024287,5]
[334506839,1723170645926,-729.05,0.00024287,5]
[334506840,1723170645936,-597.82,0.00024287,5]
[334506841,1723170645946,-500.0,0.00024287,5]
[334506842,1723170645955,-500.0,0.00024287,5]
[334506843,1723170645965,-1042.36,0.00024287,5]
[334506844,1723170645975,-500.0,0.00024287,5]
[334506845,1723170645984,-1056.39,0.00024287,5]
[334506846,1723170645993,-500.0,0.00024287,5]
[334506847,1723170646003,-505.02019241,0.00024287,5]
[334506848,1723170646012,-500.0,0.00024287,5]
[334506849,1723170646021,-500.0,0.00024287,5]
[334506850,1723170646089,-2255.39,0.00024287,5]
[334506851,1723170646099,-500.0,0.00024287,5]
[334506852,1723170646109,-500.0,0.00024287,5]
[334506853,1723170646119,-500.0,0.00024287,5]
[334506854,1723170646128,-580.64,0.00024287,5]
[334506855,1723170646138,-500.0,0.00024287,5]
[334506856,1723170646148,-500.0,0.00024287,5]
[334506857,1723170646158,-500.0,0.00024287,5]
[334506858,1723170646167,-206.89469176,0.00024287,5]
[334506859,1723170646177,-500.0,0.00024287,5]
[334506860,1723170646187,-500.0,0.00024287,5]
[334506861,1723170646197,-500.0,0.00024287,5]
[334506862,1723170646207,-500.0,0.00024287,5]
[334506863,1723170646216,-560.67,0.00024287,5]
[334506864,1723170646227,-500.0,0.00024287,5]
[334506865,1723170646237,-500.0,0.00024287,5]
[334506866,1723170646247,-1425.35,0.00024287,5]
[334506867,1723170646256,-500.0,0.00024287,5]
[334506868,1723170646265,-2751.43,0.00024287,5]
[334506869,1723170646278,-500.0,0.00024287,5]
[334506870,1723170646291,-500.0,0.00024287,5]
[334506871,1723170646302,-500.0,0.00024287,5]
[334506872,1723170646311,-500.0,0.00024287,5]
[334506873,1723170646321,-726.54,0.00024287,5]
[334506874,1723170646330,-1259.87,0.00024287,5]
[334506875,1723170646339,-500.0,0.00024287,5]
[334506876,1723170646348,-500.0,0.00024287,5]
[334506877,1723170646357,-653.02,0.00024287,5]
[334506878,1723170646366,-705.34,0.00024287,5]
[334506879,1723170646377,-631.06,0.00024287,5]
[334506880,1723170646388,-500.0,0.00024287,5]
[334506881,1723170646397,-500.0,0.00024287,5]
[334506882,1723170646406,-500.0,0.00024287,5]
[334506883,1723170646418,-4541.84,0.00024287,5]
[334506884,1723170646427,-500.0,0.00024287,5]
[334506885,1723170646437,-8436.03,0.00024287,5]
[334506886,1723170646446,-500.0,0.00024287,5]
[334506887,1723170646457,-500.0,0.00024287,5]
[334506888,1723170646466,-5150.67,0.00024287,5]
[334506889,1723170646475,-500.0,0.00024287,5]
[334506890,1723170646485,-963.02,0.00024287,5]
[334506891,1723170646495,-26726.49,0.00024287,5]
[334506892,1723170646507,-500.0,0.00024287,5]
[334506893,1723170646518,-500.0,0.00024287,5]
[334506894,1723170646529,-500.0,0.00024287,5]
[334506895,1723170646538,-580.77329072,0.00024287,5]
[334506896,1723170646547,-5300.58,0.00024287,5]
[334506897,1723170646556,-500.0,0.00024287,5]
[334506898,1723170646567,-501.83657595,0.00024287,5]
[334506899,1723170646576,-606.03599443,0.00024287,2]
[334506900,1723170646587,-731.67,0.00024287,5]
[334506901,1723170646596,-500.0,0.00024287,5]
[334506902,1723170646605,-7825.96,0.00024287,5]
[334506903,1723170646614,-500.0,0.00024287,5]
[334506904,1723170646623,-1733.44,0.00024287,5]
[334506905,1723170646632,-501.84048353,0.00024287,5]
[334506906,1723170646641,-8791.28,0.00024287,5]
[334506907,1723170646650,-500.0,0.00024287,5]
[334506908,1723170646659,-500.0,0.00024287,5]
[334506909,1723170646669,-502.18442901,0.00024287,5]
[334506911,1723170646678,-500.0,0.00024287,5]
[334506913,1723170646687,-306.95763954,0.00024287,5]
[334506914,1723170646696,-3479.85,0.00024287,5]
[334506915,1723170646705,-733.4,0.00024287,5]
[334506916,1723170646714,-500.0,0.00024287,5]
[334506917,1723170646723,-500.0,0.00024287,5]
[334506918,1723170646732,-23551.14,0.00024287,5]
[334506919,1723170646741,-1835.96,0.00024287,5]
[334506920,1723170646750,-500.0,0.00024287,5]
[334506921,1723170646759,-500.0,0.00024287,5]
[334506922,1723170646769,-7226.69,0.00024287,5]
[334506923,1723170646780,-500.0,0.00024287,5]
[334506924,1723170646790,-761.87,0.00024287,5]
[334506925,1723170646799,-306.85918819,0.00024287,5]
[334506926,1723170646808,-5618.16,0.00024287,5]
[334506927,1723170646817,-500.0,0.00024287,5]
[334506928,1723170646826,-500.0,0.00024287,5]
[334506929,1723170646835,-2264.02,0.00024287,5]
[334506930,1723170646844,-500.0,0.00024287,5]
[334506931,1723170646853,-1528.08,0.00024287,5]
[334506932,1723170646862,-58912.1368476,0.00024287,5]
[334506933,1723170646871,-713.02,0.00024287,5]
[334506934,1723170646880,-500.0,0.00024287,5]
[334506935,1723170646889,-3931.8,0.00024287,5]
[334506936,1723170646898,-500.0,0.00024287,5]
[334506937,1723170646907,-7948.47,0.00024287,5]
[334506938,1723170646917,-500.0,0.00024287,5]
[334506939,1723170646926,-500.0,0.00024287,5]
[334506940,1723170646935,-4537.53,0.00024287,5]
[334506941,1723170646944,-4783.56,0.00024287,5]
[334506942,1723170646953,-500.0,0.00024287,5]
[334506943,1723170646962,-1851.5,0.00024287,5]
[334506944,1723170646972,-500.0,0.00024287,5]
[334506945,1723170646981,-1178.98,0.00024287,5]
[334506946,1723170646990,-500.0,0.00024287,5]
[334506947,1723170646999,-2267.63,0.00024287,5]
[334506948,1723170647008,-500.0,0.00024287,5]
[334506949,1723170647017,-500.0,0.00024287,5]
[334506950,1723170647028,-2625.2,0.00024287,5]
[334506951,1723170647036,-500.0,0.00024287,5]
[334506952,1723170647045,-821.23,0.00024287,5]
[334506953,1723170647054,-6964.81,0.00024287,5]
[334506954,1723170647063,-736.19,0.00024287,5]
[334506955,1723170647073,-5593.89,0.00024287,5]
[334506956,1723170647082,-515.17942361,0.00024287,5]
[334506957,1723170647091,-524.95,0.00024287,5]
[334506958,1723170647100,-848.37,0.00024287,5]
[334506959,1723170647109,-1423.3,0.00024287,5]
[334506960,1723170647118,-8891.33,0.00024287,5]
[334506961,1723170647127,-2611.94,0.00024287,5]
[334506962,1723170647137,-500.0,0.00024287,5]
[334506963,1723170647146,-500.0,0.00024287,5]
[334506964,1723170647155,-1484.69,0.00024287,5]
[334506965,1723170647164,-2467.79,0.00024287,5]
[334506966,1723170647173,-19278.68,0.00024287,5]
[334506967,1723170647182,-500.0,0.00024287,5]
[334506968,1723170647191,-3512.02,0.00024287,5]
[334506969,1723170647201,-500.0,0.00024287,5]
[334506970,1723170647210,-500.0,0.00024287,5]
[334506971,1723170647219,-14746.04,0.00024287,5]
[334506972,1723170647228,-2178.07,0.00024287,5]
[334506973,1723170647237,-19531.05,0.00024287,5]
[334506974,1723170647246,-1434.81,0.00024287,5]
[334506975,1723170647255,-500.0,0.00024287,5]
[334506976,1723170647264,-500.0,0.00024287,5]
[334506977,1723170647274,-5316.05,0.00024287,5]
[334506978,1723170647283,-3975.48,0.00024287,5]
[334506979,1723170647292,-8954.12,0.00024287,5]
[334506980,1723170647302,-500.0,0.00024287,5]
[334506981,1723170647311,-1114.76,0.00024287,5]
[334506982,1723170647321,-500.0,0.00024287,5]
[334506983,1723170647331,-14406.27,0.00024287,5]
[334506984,1723170647340,-500.0,0.00024287,5]
[334506985,1723170647349,-2531.5,0.00024287,5]
[334506986,1723170647359,-435.47306914,0.00024287,5]
[334506987,1723170647370,-500.0,0.00024287,5]
[334506988,1723170647384,-4267.61,0.00024287,5]
[334506989,1723170647395,-5687.1,0.00024287,5]
[334506990,1723170647404,-3935.81,0.00024287,5]
[334506991,1723170647414,-3343.34,0.00024287,5]
[334506992,1723170647424,-500.0,0.00024287,5]
[334506993,1723170647435,-1676.07,0.00024287,5]
[334506994,1723170647446,-9551.07,0.00024287,5]
[334506995,1723170647459,-2537.2,0.00024287,5]
[334506996,1723170647469,-500.0,0.00024287,5]
[334506997,1723170647480,-1879.01,0.00024287,5]
[334506998,1723170647492,-500.0,0.00024287,5]
[334506999,1723170647503,-3395.41,0.00024287,5]
[334507000,1723170647513,-1589.47,0.00024287,5]
[334507001,1723170647523,-500.0,0.00024287,5]
[334507002,1723170647532,-28467.15,0.00024287,5]
[334507003,1723170647542,-3396.98,0.00024287,5]
[334507004,1723170647551,-587.07,0.00024287,5]
[334507005,1723170647560,-855.23,0.00024287,5]
[334507006,1723170647569,-1212.01,0.00024287,5]
[334507007,1723170647579,-2158.92,0.00024287,5]
[334507008,1723170647588,-500.0,0.00024287,5]
[334507009,1723170647599,-1187.45,0.00024287,5]
[334507010,1723170647609,-5367.26,0.00024287,5]
[334507011,1723170647619,-5240.17,0.00024287,5]
[334507012,1723170647630,-610.57,0.00024287,5]
[334507013,1723170647639,-500.0,0.00024287,5]
[334507014,1723170647649,-1636.19,0.00024287,5]
[334507015,1723170647658,-3366.11,0.00024287,5]
[334507016,1723170647667,-500.0,0.00024287,5]
[334507017,1723170647676,-500.0,0.00024287,5]
[334507018,1723170647685,-2840.81,0.00024287,5]
[334507019,1723170647695,-2606.36,0.00024287,5]
[334507020,1723170647707,-3854.56,0.00024287,5]
[334507021,1723170647718,-500.0,0.00024287,5]
[334507022,1723170647727,-7292.06,0.00024287,5]
[334507023,1723170647737,-500.0,0.00024287,5]
[334507024,1723170647746,-500.0,0.00024287,5]
[334507025,1723170647756,-1023.78,0.00024287,5]
[334507026,1723170647766,-764.66,0.00024287,5]
[334507027,1723170647778,-500.0,0.00024287,5]
[334507028,1723170647787,-500.0,0.00024287,5]
[334507029,1723170647798,-500.0,0.00024287,5]
[334507030,1723170647807,-8501.32,0.00024287,5]
[334507031,1723170647818,-2602.88,0.00024287,5]
[334507032,1723170647827,-1509.86,0.00024287,5]
[334507033,1723170647836,-500.0,0.00024287,5]
[334507034,1723170647846,-500.0,0.00024287,5]
[334507035,1723170647855,-500.0,0.00024287,5]
[334507036,1723170647865,-9194.03,0.00024287,5]
[334507037,1723170647875,-4565.42,0.00024287,5]
[334507038,1723170647884,-500.0,0.00024287,5]
[334507039,1723170647894,-500.0,0.00024287,5]
[334507040,1723170647904,-500.0,0.00024287,5]
[334507041,1723170647914,-1269.81,0.00024287,5]